bitfinex-derivatives/quotes_BTCF0:USTF0_20241214
["timestamp","ask_amount","ask_price","bid_price","bid_amount"]
[1734203168254,0.71233501,101010.0,101000.0,0.00012083]
[1734203169563,0.71233501,101010.0,101000.0,0.04962783]
[1734203169959,0.618202,101010.0,101000.0,0.04962783]
[1734203171259,0.71233501,101010.0,101000.0,0.04962783]
[1734203174063,0.80646802,101010.0,101000.0,0.17725897]
[1734203174266,0.71233501,101010.0,101000.0,0.17725897]
[1734203174464,0.72287968,101010.0,101000.0,0.17725897]
[1734203176061,0.8711604,101010.0,101000.0,0.00012083]
[1734203176468,0.96529341,101010.0,101000.0,0.00012083]
[1734203177565,1.44341518,101010.0,100990.0,0.17763814]
[1734203177767,1.44341518,101010.0,100980.0,0.41430432]
[1734203177768,0.049512,100990.0,100980.0,0.41430432]
[1734203177959,0.50444501,100990.0,100980.0,0.17713814]
[1734203178164,0.56864501,100990.0,100980.0,0.17713814]
[1734203178575,0.56872251,100990.0,100980.0,0.17713814]
[1734203179266,0.62667251,100990.0,100980.0,0.17713814]
[1734203180759,0.62667251,100990.0,100980.0,0.17763814]
[1734203180963,0.66604251,100990.0,100980.0,0.17763814]
[1734203181660,0.66604251,100990.0,100980.0,0.17713814]
[1734203182765,0.66604251,100990.0,100980.0,0.17763814]
[1734203183369,0.67661568,100990.0,100980.0,0.0005]
[1734203183773,0.049517,100980.0,100970.0,0.46382232]
[1734203184766,0.14365001,100980.0,100970.0,0.46382232]
[1734203185875,0.15157001,100980.0,100970.0,0.46382232]
[1734203186677,0.15157001,100980.0,100970.0,0.41430432]
[1734203186878,0.51237001,100980.0,100970.0,0.17713814]
[1734203187280,0.049522,100970.0,100960.0,0.49631475]
[1734203187474,0.14365501,100970.0,100960.0,0.49631475]
[1734203188287,0.14365501,100970.0,100960.0,0.25914857]
[1734203189581,0.14365501,100970.0,100960.0,0.49631475]
[1734203190380,0.14786501,100970.0,100960.0,0.49631475]
[1734203190577,0.18195501,100970.0,100960.0,0.49631475]
[1734203191481,0.0383,100970.0,100960.0,0.9516182]
[1734203191681,0.0383,100970.0,100960.0,0.9830182]
[1734203191878,0.00792,100980.0,100970.0,0.049522]
[1734203192086,0.00792,100980.0,100970.0,0.87756275]
[1734203192292,0.00792,100980.0,100970.0,1.44168032]
[1734203192486,0.00792,100980.0,100970.0,1.45656032]
[1734203192788,0.00792,100980.0,100970.0,1.45706032]
[1734203192986,0.0641975,100990.0,100980.0,0.049517]
[1734203193192,0.0641975,100990.0,100980.0,1.14107756]
[1734203193392,0.0641975,100990.0,100980.0,1.40774455]
[1734203193591,0.0641975,100990.0,100980.0,1.40779612]
[1734203194293,0.0721175,100990.0,100980.0,1.40779612]
[1734203195286,0.0721175,100990.0,100980.0,1.1119557]
[1734203199599,0.0721175,100990.0,100980.0,1.4779157]
[1734203199792,0.0721175,100990.0,100980.0,1.58229102]
[1734203199989,0.0721175,100990.0,100980.0,1.52623988]
[1734203200686,0.0721175,100990.0,100980.0,1.55733988]
[1734203202196,0.0721175,100990.0,100980.0,1.97035034]
[1734203202897,0.0721175,100990.0,100980.0,1.72574034]
[1734203203194,0.0721175,100990.0,100980.0,1.37068006]
[1734203203394,0.0721175,100990.0,100980.0,1.72569437]
[1734203204596,0.0721175,100990.0,100980.0,2.02569437]
[1734203205690,0.0721175,100990.0,100980.0,2.05889437]
[1734203207299,0.0721175,100990.0,100980.0,1.96476136]
[1734203207893,0.0721175,100990.0,100980.0,1.75889437]
[1734203209992,0.0005,101000.0,100990.0,0.049512]
[1734203210300,0.15000785,101030.0,101010.0,0.049502]
[1734203210498,0.0624,101030.0,101020.0,0.049497]
[1734203210804,0.111892,101030.0,101020.0,0.049497]
[1734203211096,0.11195418,101030.0,101020.0,0.049497]
[1734203211303,0.14011418,101030.0,101020.0,0.049497]
[1734203214094,0.09062218,101030.0,101020.0,0.50443001]
[1734203214414,0.05872218,101030.0,101020.0,0.68183201]
[1734203218805,0.05872218,101030.0,101020.0,0.59804177]
[1734203219306,0.05872218,101030.0,101020.0,0.83457778]
[1734203219509,0.05872218,101030.0,101020.0,0.92871079]
[1734203219706,0.02822218,101030.0,101020.0,1.29455079]
[1734203220005,0.03277,101050.0,101040.0,0.049487]
[1734203220206,0.03277,101050.0,101040.0,0.91827271]
[1734203221404,0.03846,101050.0,101040.0,0.91840476]
[1734203222409,0.00666,101050.0,101040.0,0.74090727]
[1734203222602,0.03816,101050.0,101040.0,0.74090727]
[1734203224110,0.03816,101050.0,101040.0,0.91823845]
[1734203224903,0.03866,101050.0,101040.0,0.91823845]
[1734203228013,0.03866,101050.0,101040.0,0.92837373]
[1734203228217,0.03769,101050.0,101040.0,0.92837373]
[1734203228414,0.03769,101050.0,101040.0,0.69188647]
[1734203230311,0.03769,101050.0,101040.0,1.02250674]
[1734203230518,0.03769,101050.0,101040.0,1.05280674]
[1734203232308,0.03769,101050.0,101040.0,0.95867373]
[1734203234109,0.03769,101050.0,101040.0,0.72218647]
[1734203235214,0.03769,101050.0,101040.0,0.95867373]
[1734203236520,0.03769,101050.0,101040.0,1.05280674]
[1734203236813,0.03769,101050.0,101040.0,0.95867373]
[1734203237218,0.03769,101050.0,101040.0,0.92837373]
[1734203239212,0.03769,101050.0,101040.0,0.75104255]
[1734203239815,0.03719,101050.0,101040.0,0.75104255]
[1734203240017,0.086672,101050.0,101040.0,0.22693527]
[1734203240220,0.086672,101050.0,101040.0,0.46342253]
[1734203240518,0.086672,101050.0,101040.0,0.91835554]
[1734203240519,0.03719,101050.0,101040.0,0.91835554]
[1734203242020,0.03719,101050.0,101040.0,1.01248855]
[1734203242812,0.03719,101050.0,101040.0,0.91835554]
[1734203243213,0.03719,101050.0,101040.0,0.74090727]
[1734203244020,0.03719,101050.0,101040.0,0.38010727]
[1734203244213,0.03719,101050.0,101040.0,0.67571635]
[1734203244921,0.03719,101050.0,101040.0,1.03651635]
[1734203245314,0.03719,101050.0,101040.0,0.92714761]
[1734203245513,0.03719,101050.0,101040.0,1.28794761]
[1734203245913,0.03719,101050.0,101040.0,0.92714761]
[1734203246114,0.12599197,101050.0,101040.0,0.92714761]
[1734203246514,0.24409982,101050.0,101040.0,0.92714761]
[1734203246714,0.24409982,101050.0,101040.0,1.28794761]
[1734203246914,0.12599197,101050.0,101040.0,0.92714761]
[1734203247113,0.12599197,101050.0,101040.0,1.28794761]
[1734203247314,0.24409982,101050.0,101040.0,0.69066035]
[1734203247822,0.24409982,101050.0,101040.0,1.05146035]
[1734203248428,0.24409982,101050.0,101040.0,1.05192934]
[1734203249113,0.24409982,101050.0,101040.0,1.4361991]
[1734203249316,0.24409982,101050.0,101040.0,1.44084033]
[1734203250917,0.24409982,101050.0,101040.0,1.14059002]
[1734203251219,0.12599197,101050.0,101040.0,1.50459246]
[1734203251418,0.12599197,101050.0,101040.0,1.14957815]
[1734203251624,0.09449197,101050.0,101040.0,1.56349705]
[1734203252122,0.00569,101050.0,101040.0,1.56349705]
[1734203252915,0.09449197,101050.0,101040.0,1.14957815]
[1734203254328,0.00569,101050.0,101040.0,1.14957815]
[1734203256529,0.08880197,101060.0,101050.0,0.049482]
[1734203256822,0.08880197,101070.0,101060.0,0.049478]
[1734203257023,0.08880197,101070.0,101060.0,1.77721481]
[1734203257423,0.26970982,101080.0,101060.0,1.77664805]
[1734203257632,0.26970982,101080.0,101070.0,0.80070145]
[1734203257818,0.26970982,101080.0,101070.0,1.0526017]
[1734203259130,0.15160197,101080.0,101070.0,1.28953215]
[1734203260122,0.15160197,101080.0,101070.0,0.74120107]
[1734203260421,0.15160197,101080.0,101070.0,0.38040107]
[1734203261222,0.15160197,101080.0,101070.0,0.39052213]
[1734203268234,0.0315,101080.0,101070.0,0.84531975]
[1734203268431,0.0315,101080.0,101070.0,0.87611975]
[1734203268626,0.0315,101080.0,101070.0,0.78212213]
[1734203268829,0.032,101080.0,101070.0,0.78212213]
[1734203271242,0.032,101080.0,101070.0,0.74978747]
[1734203276140,0.032,101080.0,101070.0,1.0462183]
[1734203276642,0.032,101080.0,101070.0,1.29765764]
[1734203276841,0.0005,101080.0,101070.0,1.4234206]
[1734203277047,0.66770982,101100.0,101070.0,1.24815311]
[1734203277247,0.54960197,101100.0,101090.0,0.11112596]
[1734203277545,0.54960197,101100.0,101090.0,0.28859607]
[1734203277748,0.54960197,101100.0,101090.0,0.52671698]
[1734203279150,0.72502293,101100.0,101090.0,0.22842721]
[1734203279346,0.66335997,101100.0,101090.0,0.29009017]
[1734203279547,0.78146782,101100.0,101090.0,0.29009017]
[1734203281351,0.78146782,101100.0,101090.0,0.22842721]
[1734203283251,0.69266585,101100.0,101090.0,0.22842721]
[1734203283853,0.69316585,101100.0,101090.0,0.22842721]
[1734203285350,0.84144657,101100.0,101090.0,0.22842721]
[1734203286154,0.72333872,101100.0,101090.0,0.46505402]
[1734203286949,0.72333872,101100.0,101090.0,0.41559102]
[1734203290951,0.72333872,101100.0,101090.0,0.46505402]
[1734203291554,0.72333872,101100.0,101090.0,0.55900575]
[1734203291758,0.77746765,101100.0,101090.0,0.55900575]
[1734203292146,0.77746765,101100.0,101090.0,0.41373564]
[1734203292660,0.62918693,101100.0,101090.0,0.41373564]
[1734203293159,0.77746765,101100.0,101090.0,0.41373564]
[1734203293358,0.62918693,101100.0,101090.0,0.41373564]
[1734203293564,0.77746765,101100.0,101090.0,0.41373564]
[1734203294955,0.77696765,101100.0,101090.0,0.41373564]
[1734203295659,0.26788693,101100.0,101090.0,0.71016647]
[1734203295959,0.26788693,101100.0,101090.0,0.95919108]
[1734203297553,0.77696765,101100.0,101090.0,0.23812091]
[1734203297760,0.72033872,101100.0,101090.0,0.41596324]
[1734203300761,0.89846049,101100.0,101090.0,0.41596324]
[1734203301163,0.72033872,101100.0,101090.0,0.47761862]
[1734203301365,0.68963872,101100.0,101090.0,0.52708162]
[1734203301559,0.65853872,101100.0,101090.0,0.92698144]
[1734203301760,0.77710558,101100.0,101090.0,0.92698144]
[1734203301972,0.77710558,101100.0,101090.0,0.92687856]
[1734203303161,0.77710558,101100.0,101090.0,0.92692302]
[1734203304157,0.65853872,101100.0,101090.0,0.92692302]
[1734203306670,0.65853872,101100.0,101090.0,0.93728555]
[1734203307165,0.65853872,101100.0,101090.0,0.70065874]
[1734203308067,0.29773872,101100.0,101090.0,0.70065874]
[1734203308277,0.4163645,101100.0,101090.0,0.70065874]
[1734203308580,0.4163645,101100.0,101090.0,1.05658202]
[1734203309571,0.26808378,101100.0,101090.0,1.05658202]
[1734203310475,0.26808378,101100.0,101090.0,1.05682674]
[1734203312070,0.30758016,101100.0,101090.0,1.47928212]
[1734203312272,0.18895595,101100.0,101090.0,1.5417543]
[1734203312571,0.1,101100.0,101090.0,1.59989454]
[1734203312965,0.20755814,101110.0,101100.0,0.049458]
[1734203313170,0.11862578,101120.0,101100.0,1.49892829]
[1734203313379,0.7085515,101130.0,101110.0,0.53192045]
[1734203313671,0.71870582,101130.0,101120.0,0.58733771]
[1734203314176,0.71870582,101130.0,101120.0,0.58887627]
[1734203314371,0.68730582,101130.0,101120.0,0.58887627]
[1734203314671,0.54040533,101140.0,101120.0,0.58887627]
[1734203314672,0.31782906,101140.0,101130.0,0.049443]
[1734203314877,0.31782906,101140.0,101130.0,0.52554026]
[1734203315174,0.16954834,101140.0,101130.0,0.52707882]
[1734203315472,0.56164834,101140.0,101130.0,0.29017656]
[1734203316170,0.39358356,101140.0,101130.0,0.52707882]
[1734203316569,0.39358356,101140.0,101130.0,0.55727882]
[1734203318380,0.39358356,101140.0,101130.0,0.32037656]
[1734203318678,0.44302156,101140.0,101130.0,0.32037656]
[1734203320573,0.44302156,101140.0,101130.0,0.05098156]
[1734203320772,0.50642156,101140.0,101130.0,0.11263694]
[1734203327777,0.56807694,101140.0,101130.0,0.00153856]
[1734203328183,0.56807694,101140.0,101130.0,0.06319394]
[1734203329288,0.50642156,101140.0,101130.0,0.06319394]
[1734203330083,0.50692156,101140.0,101130.0,0.06319394]
[1734203330482,0.00198356,101140.0,101130.0,0.53509232]
[1734203330779,0.00198356,101140.0,101130.0,0.9817342]
[1734203330983,0.00198356,101140.0,101130.0,1.0139342]
[1734203331390,0.00198356,101140.0,101130.0,0.95227882]
[1734203331777,0.00198356,101140.0,101130.0,0.71537656]
[1734203332280,0.05142156,101140.0,101130.0,0.68317656]
[1734203332473,0.08332156,101140.0,101130.0,0.68317656]
[1734203333680,0.08332156,101140.0,101130.0,0.74483194]
[1734203333883,0.08332156,101140.0,101130.0,0.68317656]
[1734203334486,0.03388356,101140.0,101130.0,0.68317656]
[1734203334983,0.00198356,101140.0,101130.0,0.74483194]
[1734203335184,0.00198356,101140.0,101130.0,0.77603194]
[1734203335779,0.00198356,101140.0,101130.0,0.95127882]
[1734203336076,0.00198356,101140.0,101130.0,0.71437656]
[1734203336283,0.03408356,101140.0,101130.0,0.71437656]
[1734203336488,0.08352156,101140.0,101130.0,0.92007882]
[1734203336986,0.08302156,101140.0,101130.0,0.92007882]
[1734203339190,0.08302156,101140.0,101130.0,0.9817342]
[1734203339387,0.08302156,101140.0,101130.0,0.80419458]
[1734203339580,0.08302156,101140.0,101130.0,0.44339458]
[1734203339780,0.08302156,101140.0,101130.0,0.80419458]
[1734203339980,0.08302156,101140.0,101130.0,0.7425392]
[1734203340380,0.08302156,101140.0,101130.0,1.03889589]
[1734203341489,0.08302156,101140.0,101130.0,1.05343836]
[1734203342084,0.50547694,101140.0,101130.0,0.34926908]
[1734203342289,0.50547694,101140.0,101130.0,0.52676845]
[1734203342481,0.50547694,101140.0,101130.0,0.89725854]
[1734203342482,0.56244734,101140.0,101130.0,0.89725854]
[1734203342678,0.56244734,101140.0,101130.0,0.34926908]
[1734203343286,0.56244734,101140.0,101130.0,0.64562577]
[1734203343487,0.56244734,101140.0,101130.0,0.8976854]
[1734203344286,0.56244734,101140.0,101130.0,0.89753956]
[1734203344984,0.71072806,101140.0,101130.0,0.64562577]
[1734203345178,0.77238344,101140.0,101130.0,0.47755765]
[1734203345390,0.71072806,101140.0,101130.0,0.47755765]
[1734203345690,0.59061872,101140.0,101130.0,0.47755765]
[1734203346488,0.60092339,101140.0,101130.0,0.47755765]
[1734203348695,0.71941841,101140.0,101130.0,0.52700065]
[1734203348992,0.70911374,101140.0,101130.0,0.55940065]
[1734203349195,0.20003302,101140.0,101130.0,0.92981115]
[1734203349388,0.20003302,101140.0,101130.0,0.96171115]
[1734203350387,0.2616884,101140.0,101130.0,0.78631277]
[1734203350588,0.77076912,101140.0,101130.0,0.41587755]
[1734203350788,0.6522741,101140.0,101130.0,0.41587755]
[1734203350992,0.59061872,101140.0,101130.0,0.52697593]
[1734203351194,0.70911369,101140.0,101130.0,0.34926908]
[1734203351787,0.70911369,101140.0,101130.0,0.38166908]
[1734203352686,0.16793297,101140.0,101130.0,0.99177992]
[1734203352882,0.16793297,101140.0,101130.0,1.29092454]
[1734203353095,0.16793297,101140.0,101130.0,1.0542924]
[1734203353786,0.049438,101140.0,101130.0,1.0542924]
[1734203354997,0.16793297,101140.0,101130.0,1.0542924]
[1734203355696,0.049438,101140.0,101130.0,1.0542924]
[1734203357586,0.049438,101140.0,101130.0,1.05435641]
[1734203358091,0.049438,101140.0,101130.0,1.42020386]
[1734203360891,0.049438,101140.0,101130.0,1.35854848]
[1734203361088,0.59038835,101140.0,101130.0,0.63190103]
[1734203361292,0.59203297,101140.0,101130.0,0.66115641]
[1734203361990,0.80196907,101140.0,101130.0,0.89821033]
[1734203362193,0.80196907,101140.0,101130.0,0.78711195]
[1734203362400,0.80196907,101140.0,101130.0,0.23859248]
[1734203362603,0.6834741,101140.0,101130.0,0.41638591]
[1734203363002,0.86159587,101140.0,101130.0,0.41638591]
[1734203363395,0.92325125,101140.0,101130.0,0.41638591]
[1734203364404,0.74512948,101140.0,101130.0,0.41638591]
[1734203367300,0.74512948,101140.0,101130.0,0.17933199]
[1734203367605,0.74512948,101140.0,101130.0,0.41638591]
[1734203367807,0.74512948,101140.0,101130.0,0.17933199]
[1734203368907,0.6834741,101140.0,101130.0,0.17933199]
[1734203369716,0.74512948,101140.0,101130.0,0.17933199]
[1734203373102,0.74512948,101140.0,101130.0,0.41638591]
[1734203373303,0.77497053,101140.0,101130.0,0.00153856]
[1734203376108,1.07497053,101140.0,101130.0,0.00153856]
[1734203376712,1.09430179,101140.0,101130.0,0.00153856]
[1734203378111,1.20885717,101140.0,101130.0,0.00153856]
[1734203378411,0.049443,101130.0,101120.0,0.0005]
[1734203378615,0.7138188,101130.0,101120.0,0.0005]
[1734203379635,0.59050804,101130.0,101120.0,0.0005]
[1734203379928,0.65216342,101130.0,101120.0,0.0005]
[1734203380129,0.049448,101120.0,101110.0,0.52595573]
[1734203380322,0.410248,101120.0,101110.0,0.52595573]
[1734203381132,0.410248,101120.0,101110.0,0.52645573]
[1734203381329,0.049448,101120.0,101110.0,0.3486623]
[1734203381625,0.410248,101120.0,101110.0,0.47676495]
[1734203382028,0.410248,101120.0,101110.0,0.47626495]
[1734203383030,0.410248,101120.0,101110.0,0.2992093]
[1734203384124,0.410248,101120.0,101110.0,0.2987093]
[1734203384829,0.410248,101120.0,101110.0,0.47626324]
[1734203385130,0.410248,101120.0,101110.0,0.47676324]
[1734203386030,0.410248,101120.0,101110.0,0.47626324]
[1734203387131,0.410248,101120.0,101110.0,0.47676324]
[1734203387331,0.52861696,101120.0,101110.0,0.2992093]
[1734203387531,0.53885908,101120.0,101110.0,0.2992093]
[1734203387733,0.60051446,101120.0,101110.0,0.23755392]
[1734203388228,0.53885908,101120.0,101110.0,0.23705392]
[1734203389022,0.53885908,101120.0,101110.0,0.23755392]
[1734203390227,0.53885908,101120.0,101110.0,0.78566036]
[1734203392434,0.53885908,101120.0,101110.0,0.78578187]
[1734203394423,0.60051446,101120.0,101110.0,0.78578187]
[1734203395129,0.60051446,101120.0,101110.0,0.78528187]
[1734203395735,0.81013488,101120.0,101110.0,0.41485869]
[1734203395934,0.84183488,101120.0,101110.0,0.41485873]
[1734203396141,0.75356592,101120.0,101110.0,0.41485873]
[1734203399246,0.69191054,101120.0,101110.0,0.41485873]
[1734203400238,0.75356592,101120.0,101110.0,0.41485873]
[1734203400740,0.63025516,101120.0,101110.0,0.41485873]
[1734203401045,0.69191054,101120.0,101110.0,0.41485873]
[1734203401242,0.60015516,101120.0,101110.0,0.23705392]
[1734203401543,0.68696089,101120.0,101110.0,0.89647213]
[1734203401743,0.17819585,101120.0,101110.0,0.65941821]
[1734203401938,0.16795373,101120.0,101110.0,0.65941821]
[1734203402132,0.16795373,101120.0,101110.0,1.41067144]
[1734203402339,0.26647077,101130.0,101110.0,1.41067144]
[1734203402535,0.67671677,101130.0,101120.0,0.65793354]
[1734203402735,0.67671677,101130.0,101120.0,1.02099006]
[1734203402946,0.11852901,101130.0,101120.0,1.13950901]
[1734203403338,0.11852901,101130.0,101120.0,0.78384421]
[1734203404648,0.11852901,101130.0,101120.0,0.72218883]
[1734203405043,0.11852901,101130.0,101120.0,0.78384421]
[1734203405342,0.11852901,101130.0,101120.0,1.50030901]
[1734203405548,0.78040664,101140.0,101120.0,1.15450335]
[1734203405747,0.2716416,101140.0,101130.0,0.29865162]
[1734203406043,0.21048622,101140.0,101130.0,0.34809462]
[1734203406252,0.17848622,101140.0,101130.0,1.25730133]
[1734203406440,0.17848622,101140.0,101130.0,1.19554872]
[1734203406641,0.2401416,101140.0,101130.0,1.19554872]
[1734203406943,0.17848622,101140.0,101130.0,0.28634201]
[1734203407140,0.2396416,101140.0,101130.0,0.34799739]
[1734203407344,0.17798622,101140.0,101130.0,0.34799739]
[1734203408152,0.2401416,101140.0,101130.0,0.34799739]
[1734203408655,0.17848622,101140.0,101130.0,0.70879739]
[1734203409048,0.05945721,101140.0,101130.0,1.0052297]
[1734203409553,0.05945721,101140.0,101130.0,0.70879739]
[1734203409948,0.05945721,101140.0,101130.0,0.88636102]
[1734203410150,0.05995721,101140.0,101130.0,0.88636102]
[1734203410350,0.0005,101140.0,101130.0,0.70879739]
[1734203410655,0.0005,101140.0,101130.0,1.43870445]
[1734203410848,0.0005,101140.0,101130.0,1.40894907]
[1734203411042,0.82301276,101160.0,101130.0,1.40902623]
[1734203411251,0.82301276,101160.0,101150.0,0.049434]
[1734203411759,0.82301276,101160.0,101150.0,0.28860958]
[1734203411760,0.58069234,101160.0,101150.0,0.28860958]
[1734203411954,0.64234772,101160.0,101150.0,0.28860958]
[1734203412153,0.64234772,101160.0,101150.0,0.2269542]
[1734203412547,0.58069234,101160.0,101150.0,0.2269542]
[1734203412747,0.64234772,101160.0,101150.0,0.2269542]
[1734203413745,0.65236394,101160.0,101150.0,0.2269542]
[1734203414448,0.65236394,101160.0,101150.0,0.049434]
[1734203414852,0.71401932,101160.0,101140.0,0.4962508]
[1734203415056,0.42245538,101150.0,101140.0,0.4636508]
[1734203415245,0.48835538,101150.0,101140.0,0.2269572]
[1734203415956,0.17698938,101150.0,101140.0,0.2269572]
[1734203416151,0.53828938,101150.0,101140.0,0.2269572]
[1734203416345,0.115834,101150.0,101140.0,0.28861258]
[1734203416554,0.17748938,101150.0,101140.0,0.28861258]
[1734203416759,0.115834,101150.0,101140.0,0.52530618]
[1734203416963,0.115834,101150.0,101140.0,0.28861258]
[1734203417261,0.115334,101150.0,101140.0,0.28861258]
[1734203418050,0.115834,101150.0,101140.0,0.52530618]
[1734203418257,0.115834,101150.0,101140.0,0.28861258]
[1734203419260,0.115334,101150.0,101140.0,0.28861258]
[1734203420156,0.115834,101150.0,101140.0,0.28861258]
[1734203420352,0.0005,101150.0,101140.0,0.28861258]
[1734203420557,0.0005,101150.0,101140.0,0.94776156]
[1734203420781,0.0005,101150.0,101140.0,1.08540882]
[1734203421065,0.0005,101150.0,101140.0,1.38184113]
[1734203421454,0.02083333,101160.0,101150.0,0.049434]
[1734203421657,0.02083333,101160.0,101150.0,0.91584731]
[1734203422857,0.02083333,101160.0,101150.0,0.73873677]
[1734203423463,0.02083333,101160.0,101150.0,1.3498094]
[1734203424065,0.02083333,101160.0,101150.0,1.11366201]
[1734203424467,0.049421,101180.0,101170.0,0.049424]
[1734203424662,0.049421,101180.0,101170.0,0.28797488]
[1734203425261,0.4254,101190.0,101170.0,0.27067417]
[1734203425262,0.3608,101190.0,101170.0,0.27067417]
[1734203425462,0.3608,101190.0,101180.0,0.53439467]
[1734203425463,0.049415,101190.0,101180.0,0.53439467]
[1734203425761,0.05932015,101190.0,101180.0,0.53439467]
[1734203425960,0.05932015,101190.0,101180.0,0.71129017]
[1734203426167,0.049415,101190.0,101180.0,0.71129017]
[1734203426467,0.049415,101190.0,101180.0,0.53439467]
[1734203426669,0.049415,101190.0,101180.0,0.71129017]
[1734203427258,0.410215,101190.0,101180.0,0.17359467]
[1734203427663,0.049415,101190.0,101180.0,0.20609467]
[1734203428175,0.049415,101190.0,101180.0,0.74379017]
[1734203428358,0.049415,101190.0,101180.0,0.56689467]
[1734203429270,0.049415,101190.0,101180.0,0.74379017]
[1734203429570,0.049415,101190.0,101180.0,0.56689467]
[1734203430570,0.049415,101190.0,101180.0,0.14319467]
[1734203430965,0.54002501,101200.0,101190.0,0.049414]
[1734203431166,0.52045229,101200.0,101190.0,0.14319267]
[1734203431374,0.510211,101200.0,101190.0,0.14319267]
[1734203432366,0.1,101200.0,101190.0,0.50399267]
[1734203433467,0.1,101200.0,101190.0,0.53439267]
[1734203433969,0.149409,101200.0,101190.0,0.440614]
[1734203434160,0.149409,101200.0,101190.0,0.17359267]
[1734203434765,0.149409,101200.0,101190.0,0.09377867]
[1734203434967,0.510209,101200.0,101180.0,0.50399567]
[1734203435263,0.510709,101200.0,101190.0,0.09377867]
[1734203435966,0.510709,101200.0,101190.0,0.049414]
[1734203436167,0.049414,101190.0,101180.0,0.50399567]
[1734203436662,0.049414,101190.0,101180.0,0.14319567]
[1734203436869,0.049419,101180.0,101170.0,0.87036135]
[1734203437169,0.049419,101180.0,101170.0,0.55138385]
[1734203437376,0.410219,101180.0,101170.0,0.55138385]
[1734203438071,0.410219,101180.0,101170.0,0.50856067]
[1734203438675,0.410219,101180.0,101170.0,0.414782]
[1734203442074,0.410219,101180.0,101170.0,0.50856067]
[1734203442292,0.57394671,101190.0,101170.0,0.50856067]
[1734203442492,0.475414,101190.0,101180.0,0.14319767]
[1734203442778,0.114614,101190.0,101180.0,0.14319767]
[1734203443982,0.114614,101190.0,101180.0,0.049419]
[1734203444280,0.114614,101190.0,101180.0,0.14319767]
[1734203445383,0.475414,101190.0,101180.0,0.049419]
[1734203446369,0.76028586,101200.0,101180.0,0.14319767]
[1734203446575,0.049414,101190.0,101180.0,0.049419]
[1734203447184,0.049419,101180.0,101170.0,1.18833817]
[1734203447372,0.079819,101180.0,101170.0,1.28211684]
[1734203448685,0.113019,101180.0,101170.0,1.28211684]
[1734203449581,0.5676819,101190.0,101170.0,1.23269484]
[1734203449781,0.049419,101180.0,101170.0,1.28211584]
[1734203450381,0.049419,101180.0,101170.0,1.10522034]
[1734203450977,0.13777189,101180.0,101170.0,1.10522034]
[1734203451182,0.049419,101180.0,101170.0,1.10522034]
[1734203451375,0.13777189,101180.0,101170.0,1.65625937]
[1734203452580,0.13777189,101180.0,101170.0,1.4203987]
[1734203453181,0.13777189,101180.0,101170.0,1.65663549]
[1734203454383,0.13777189,101180.0,101170.0,1.4203987]
[1734203454783,0.13777189,101180.0,101170.0,1.32662003]
[1734203454975,0.13777189,101180.0,101170.0,0.96126003]
[1734203459387,0.13777189,101180.0,101170.0,1.02281261]
[1734203462196,0.13777189,101180.0,101170.0,1.02305807]
[1734203462386,0.2563009,101180.0,101170.0,1.02305807]
[1734203462581,0.1478719,101180.0,101170.0,1.02305807]
[1734203464498,0.26640091,101180.0,101170.0,1.37872287]
[1734203464798,0.26640091,101180.0,101170.0,1.01792287]
[1734203465101,0.62771745,101180.0,101170.0,0.60070549]
[1734203465286,0.53884802,101180.0,101170.0,0.60070549]
[1734203466292,0.53884802,101180.0,101170.0,0.34585331]
[1734203466497,0.53884802,101180.0,101170.0,0.60118157]
[1734203467597,0.17804802,101180.0,101170.0,0.60118157]
[1734203467796,0.53884802,101180.0,101170.0,0.60118157]
[1734203469402,0.17804802,101180.0,101170.0,0.60118157]
[1734203469593,0.53884802,101180.0,101170.0,0.60118157]
[1734203470897,0.53884802,101180.0,101170.0,0.60109592]
[1734203471301,0.53884802,101180.0,101170.0,0.60102862]
[1734203472701,0.74836564,101180.0,101170.0,0.78792142]
[1734203472904,0.78166564,101180.0,101170.0,0.78792142]
[1734203473091,0.78166564,101180.0,101170.0,0.41356476]
[1734203473293,0.90281098,101180.0,101170.0,0.41356828]
[1734203473503,0.75484594,101180.0,101170.0,0.17725448]
[1734203474008,0.049424,101170.0,101160.0,0.41364855]
[1734203474306,0.79897477,101170.0,101160.0,0.41414855]
[1734203474501,0.79897477,101170.0,101160.0,0.41418532]
[1734203474697,0.79897477,101170.0,101160.0,0.4757379]
[1734203475098,0.79897477,101170.0,101160.0,0.41418532]
[1734203476094,0.79897477,101170.0,101160.0,0.41368532]
[1734203477501,0.79897477,101170.0,101160.0,0.17737152]
[1734203478098,0.92016104,101170.0,101160.0,8.027e-05]
[1734203478298,0.85860846,101170.0,101160.0,8.027e-05]
[1734203478600,0.049429,101160.0,101150.0,0.41360505]
[1734203478799,0.71000719,101160.0,101150.0,0.41360505]
[1734203479305,0.71000719,101160.0,101150.0,0.41410505]
[1734203479609,0.71000719,101160.0,101150.0,0.17779125]
[1734203480204,0.71000719,101160.0,101150.0,0.17729125]
[1734203481100,0.49899712,101160.0,101150.0,0.52509163]
[1734203481508,0.410229,101160.0,101150.0,0.58749163]
[1734203481714,0.49899712,101160.0,101150.0,0.41020038]
[1734203482101,0.49899712,101160.0,101150.0,0.40970038]
[1734203483200,0.49899712,101160.0,101150.0,0.41020038]
[1734203484211,0.49899712,101160.0,101150.0,0.40970038]
[1734203484619,0.5091609,101160.0,101150.0,0.40970038]
[1734203485108,0.5091609,101160.0,101150.0,0.41020038]
[1734203485610,0.57071348,101160.0,101150.0,0.3486478]
[1734203486208,0.20991348,101160.0,101150.0,0.3481478]
[1734203486407,0.20991348,101160.0,101150.0,0.40970038]
[1734203487014,0.57071348,101160.0,101150.0,0.40970038]
[1734203487219,0.57071348,101160.0,101150.0,0.41020038]
[1734203487515,0.57071348,101160.0,101150.0,0.3486478]
[1734203487904,0.5091609,101160.0,101150.0,0.3486478]
[1734203488103,0.42039278,101160.0,101150.0,0.58727289]
[1734203488312,0.5091609,101160.0,101150.0,0.40970038]
[1734203489218,0.5091609,101160.0,101150.0,0.41020038]
[1734203489412,0.5091609,101160.0,101150.0,0.3486478]
[1734203490317,0.05959278,101160.0,101150.0,0.40970038]
[1734203490513,0.05959278,101160.0,101150.0,0.70613269]
[1734203490717,0.05959278,101160.0,101150.0,0.40970038]
[1734203490917,0.5091609,101160.0,101150.0,0.40970038]
[1734203491311,0.5091609,101160.0,101150.0,0.41020038]
[1734203491819,0.5091609,101160.0,101150.0,0.3486478]
[1734203492222,0.5091609,101160.0,101150.0,0.3481478]
[1734203492522,0.5091609,101160.0,101150.0,0.64458011]
[1734203493415,0.5091609,101160.0,101150.0,0.90010745]
[1734203494113,0.5091609,101160.0,101150.0,0.64458011]
[1734203494426,0.5091609,101160.0,101150.0,0.90009036]
[1734203499329,0.5091609,101160.0,101150.0,0.90989215]
[1734203499528,0.62751839,101160.0,101150.0,0.67357835]
[1734203501643,0.68907097,101160.0,101150.0,0.66377656]